Workbook

Sheet Summary Financials
A1: Income | C1: Market Rate Proforma | D1: Proforma Assumptions
A2: Rental Income | C2: Most Likely
A3: Apartment Rental Income | C3: ='Rent Roll'!I14 -> 120000 | D3: Proforma Rent Roll (next tab)
A4: Vacancy & Collections
A5: Total Rental Income | C5: =C3+C4 -> 120000
A7: Other Income
A8: Application Fees
A9: Total Other Income
A10: Total Income | C10: =(C5+C9) -> 120000
A12: Expenses
A13: Advertising & Promotion
A14: Cleaning Expense
A15: Insurance | C15: 3000
A16: Landscaping | C16: 600 | D16: $50/month
A17: Pest Control
A18: Repairs & Maintenance | C18: 2000 | D18: $200/unit/year
A19: Real Estate Tax | C19: 6000
A20: Trash Removal
A21: Utilities
A22: Electric | C22: 600 | D22: $50x12
A23: Gas
A24: Telephone | C24: 0 | D24: NA
A25: Water / Sewer | C25: 6000 | D25: $500/month
A26: Total Utilities | C26: =SUM(C22:C25) -> 6600
A27: General & Admin.
A28: Rental Registration | C28: 350
A29: Professional Fees / Legal
A30: Total General & Admin.
A31: Property Management Fee | C31: =0.06*C5 -> 7200 | D31: 6% of Effective Gross Rent
A32: Total Expense | C32: =(SUM(C13:C31))-C26-C30 -> 25750
A33: Expense per suite | C33: =C32/14 -> 1839.285714
A35: Net Operating Income | C35: =C10-(C15+C16+C18+C19+C26+C28+C31) -> 94250

Sheet Rent Roll
A1: Unit | B1: Occupants | C1: Size (sf) | D1: Location | E1: Bedrooms | F1: Tenant | G1: Actual Rent | H1: prororma rent | I1: Total Projected Annual Rent
A2: 1 | B2: 1 | D2: 3421 e 128th | E2: 1 | F2: Vacant | G2: 0 | H2: 1000 | I2: =H2*12 -> 12000
A3: 2 | B3: 1 | D3: 3421 e 128th | E3: 1 | F3: Vacant | G3: 0 | H3: 1000 | I3: 12000
A4: 3 | B4: 1 | D4: 3425 e 128th | E4: 1 | F4: Vacant | G4: 0 | H4: 1000 | I4: 12000
A5: 4 | B5: 1 | D5: 3425 e 128th | E5: 1 | F5: Vacant | G5: 0 | H5: 1000 | I5: 12000
A6: 5 | B6: 1 | D6: 3425 e 128th | E6: 1 | F6: Vacant | G6: 0 | H6: 1000 | I6: 12000
A7: 6 | B7: 1 | D7: 3425 e 128th | E7: 1 | F7: Vacant | G7: 0 | H7: 1000 | I7: 12000
A8: 7 | B8: 1 | D8: 3429 e 128 | E8: 1 | F8: Vacant | G8: 0 | H8: 1000 | I8: 12000
A9: 8 | B9: 1 | D9: 3429 e 128th | E9: 1 | F9: Vacant | G9: 0 | H9: 1000 | I9: 12000
A10: 9 | B10: 1 | D10: 3429 e 128th | E10: 1 | F10: Vacant | G10: 0 | H10: 1000 | I10: 12000
A11: 10 | B11: 1 | D11: 3429 e 128th | E11: 1 | F11: Vacant | G11: 0 | H11: 1000 | I11: 12000
F13: Monthly Rent Total | I13: =SUM(H2:H11) -> 10000
F14: Annual Rent Total | I14: =SUM(I13*12) -> 120000
F16: Monthly Gross Revenue Total | G16: 0 | I16: =I13 -> 10000
F17: Annual Gross Revenue Total | I17: =SUM(I16*12) -> 120000

Sheet Sheet1 (hidden)
B1: Paid before | C1: Pending | D1: Estimated
B2: July 1, 2017
A3: Purchase | B3: 78600 | F3: 4500 | G3: check
A4: Roof | B4: 25000 | F4: 2110 | G4: 2016-06-01 | H4: visa
A5: Architect | B5: 47250 | D5: 23750 | F5: 10000 | G5: 2016-06-01 | H5: wire
A6: Civil Engineering | B6: 2800 | C6: 5284.69 | F6: 20000 | G6: 2016-09-01 | H6: visa
A7: Clean Up of yard, gutting building and | B7: 11500 | F7: 10640 | G7: 2016-12-01 | H7: wire
A8: Land Bank | B8: 1586 | F8: =SUM(F3:F7) -> 47250
A9: Fees | B9: 400
A10: Construction | D10: 970000
A11: Insurances to Date and est for build | B11: 10136 | D11: 15000
A12: Property Taxes | B12: 2795 | D12: 2795
B13: =SUM(B3:B12) -> 180067 | C13: 5284.69 | D13: =SUM(D5:D11) -> 1008750 | F13: =SUM(B13:E13) -> 1194101.69
